bitfinex-derivatives/quotes_BTCF0:USTF0_20250718
["timestamp","ask_amount","ask_price","bid_price","bid_amount"]
[1752805026717,0.2668904,120040.0,120030.0,0.26111]
[1752805026920,1.6329539,120040.0,120030.0,0.26111]
[1752805027121,1.75864576,120040.0,120030.0,0.26111]
[1752805027620,1.39784576,120040.0,120030.0,0.26111]
[1752805027820,1.40084576,120040.0,120030.0,0.26111]
[1752805028019,1.76164576,120040.0,120030.0,0.15718]
[1752805028421,2.08644926,120040.0,120030.0,0.04939]
[1752805028626,1.76164576,120040.0,120030.0,0.04939]
[1752805028826,0.82388226,120040.0,120030.0,0.26111]
[1752805029122,1.43672226,120040.0,120030.0,0.26111]
[1752805029523,1.00834226,120040.0,120030.0,0.7523974]
[1752805029924,0.96672186,120040.0,120030.0,0.7523974]
[1752805030127,0.96672186,120040.0,120030.0,0.9275939]
[1752805030516,0.96672186,120040.0,120030.0,1.2883939]
[1752805030819,0.96672186,120040.0,120030.0,1.6131974]
[1752805031015,0.97501117,120040.0,120030.0,1.6131974]
[1752805031420,0.97501117,120040.0,120030.0,1.2883939]
[1752805031621,0.01892721,120050.0,120040.0,0.4275801]
[1752805031821,0.79798341,120050.0,120040.0,1.15804193]
[1752805032021,0.90399757,120050.0,120040.0,1.57464993]
[1752805032621,0.90399757,120050.0,120040.0,0.99984643]
[1752805032817,0.09159765,120070.0,120060.0,0.1664423]
[1752805033025,0.8621741,120070.0,120060.0,0.44433264]
[1752805033225,0.9869406,120070.0,120060.0,0.44433264]
[1752805034025,1.0457406,120070.0,120060.0,0.44433264]
[1752805034220,1.0467406,120070.0,120060.0,0.44433264]
[1752805034424,1.0487406,120070.0,120060.0,0.44533264]
[1752805035628,1.1162406,120070.0,120060.0,0.44533264]
[1752805035828,1.1162406,120070.0,120060.0,0.94533264]
[1752805036129,1.12459296,120070.0,120060.0,0.94533264]
[1752805036728,1.50496579,120070.0,120060.0,0.94533264]
[1752805037126,1.12459296,120070.0,120060.0,0.94533264]
[1752805037333,1.48539296,120070.0,120060.0,0.94533264]
[1752805037532,1.12459296,120070.0,120060.0,0.94533264]
[1752805038735,1.12459296,120070.0,120060.0,0.97520268]
[1752805039637,1.12459296,120070.0,120060.0,1.02006101]
[1752805040336,1.12459296,120070.0,120060.0,0.97520268]
[1752805041934,0.47046336,120070.0,120060.0,0.97520268]
[1752805042133,0.36135606,120070.0,120060.0,0.97520268]
[1752805042334,0.72215606,120070.0,120060.0,0.80876038]
[1752805042530,1.03747606,120070.0,120060.0,0.97520268]
[1752805042933,0.42575606,120070.0,120060.0,0.97520268]
[1752805043238,1.03743606,120070.0,120060.0,0.97520268]
[1752805044639,1.39823606,120070.0,120060.0,0.97520268]
[1752805044835,1.77860889,120070.0,120060.0,0.97520268]
[1752805045641,1.39823606,120070.0,120060.0,0.97520268]
[1752805046340,1.39803606,120070.0,120060.0,0.97520268]
[1752805046535,0.78655606,120070.0,120060.0,0.97520268]
[1752805046840,0.72215606,120070.0,120060.0,0.97520268]
[1752805047232,1.33355606,120070.0,120060.0,0.97520268]
[1752805047431,0.97275606,120070.0,120060.0,0.97520268]
[1752805047641,0.36135606,120070.0,120060.0,0.97520268]
[1752805047841,0.97271606,120070.0,120060.0,0.97520268]
[1752805048136,0.91391606,120070.0,120060.0,0.97520268]
[1752805049043,0.74747886,120070.0,120060.0,0.97520268]
[1752805049246,0.91390726,120070.0,120060.0,0.97520268]
[1752805050745,1.16545009,120070.0,120060.0,0.80876038]
[1752805050940,1.16545009,120070.0,120060.0,0.4366]
[1752805051244,0.1664562,120050.0,120040.0,0.19633833]
[1752805051444,0.16647,120040.0,120030.0,0.19633833]
[1752805051645,1.51872283,120040.0,120030.0,0.04485833]
[1752805051839,0.1664839,120030.0,120020.0,0.21362288]
[1752805052037,1.20549329,120030.0,120020.0,0.48252068]
[1752805052242,1.33113146,120030.0,120020.0,0.43766235]
[1752805052643,1.26400207,120030.0,120020.0,0.43766235]
[1752805054050,0.65292207,120030.0,120020.0,0.27116455]
[1752805054250,1.6442949,120030.0,120020.0,0.27116455]
[1752805054451,1.6442949,120030.0,120020.0,0.16876455]
[1752805054751,1.6442549,120030.0,120020.0,0.16876455]
[1752805054950,1.6452549,120030.0,120020.0,0.16976455]
[1752805055144,1.6482149,120030.0,120020.0,0.01828455]
[1752805055546,1.6482949,120030.0,120020.0,0.01828455]
[1752805057148,1.6482549,120030.0,120020.0,0.14605455]
[1752805057550,1.714698,120030.0,120020.0,0.14605455]
[1752805058652,1.728008,120030.0,120020.0,0.14605455]
[1752805059048,1.117048,120030.0,120020.0,0.14605455]
[1752805059254,1.749098,120030.0,120020.0,0.16976455]
[1752805059849,1.138338,120030.0,120020.0,0.27216455]
[1752805060054,1.35541517,120030.0,120020.0,0.27216455]
[1752805060255,1.735788,120030.0,120020.0,0.27216455]
[1752805060549,0.74465517,120030.0,120020.0,0.43866235]
[1752805061146,0.90680207,120030.0,120020.0,0.43866235]
[1752805061852,1.26760207,120030.0,120020.0,0.43866235]
[1752805062355,1.26760207,120030.0,120020.0,0.93866235]
[1752805064155,1.6479749,120030.0,120020.0,0.93866235]
[1752805064555,1.28091207,120030.0,120020.0,0.93866235]
[1752805064754,1.6612849,120030.0,120020.0,0.93866235]
[1752805064956,1.6612849,120030.0,120020.0,0.77216455]
[1752805065458,1.6612849,120030.0,120020.0,0.93866235]
[1752805066159,1.28091207,120030.0,120020.0,0.93866235]
[1752805066350,1.26760207,120030.0,120020.0,0.93866235]
[1752805067355,1.26732207,120030.0,120020.0,0.93866235]
[1752805068356,1.6476949,120030.0,120020.0,0.77216455]
[1752805068557,1.6610049,120030.0,120020.0,0.50147453]
[1752805069460,1.6610049,120030.0,120020.0,0.00147453]
[1752805069861,0.1878017,120010.0,120000.0,0.15648]
[1752805070062,1.91184453,120010.0,120000.0,0.15648]
[1752805070262,2.036126,120010.0,120000.0,0.15648]
[1752805071164,2.037126,120010.0,120000.0,0.15748]
[1752805071365,2.037126,120010.0,120000.0,0.65748]
[1752805071961,2.037126,120010.0,120000.0,0.66933]
[1752805072365,2.039126,120010.0,120000.0,0.66933]
[1752805074362,2.0473135,120010.0,120000.0,0.69998]
[1752805074668,2.0473135,120010.0,120000.0,0.75969]
[1752805074968,2.0354835,120010.0,120000.0,0.75969]
[1752805075369,2.0354835,120010.0,120000.0,0.78203975]
[1752805076271,2.0354835,120010.0,120000.0,0.75969]
[1752805076972,2.0354835,120010.0,120000.0,0.78203975]
[1752805077272,2.0354835,120010.0,120000.0,0.75969]
[1752805077472,2.0354835,120010.0,120000.0,0.78203975]
[1752805077875,1.65511067,120010.0,120000.0,0.78203975]
[1752805078985,1.98011756,120010.0,120000.0,0.78203975]
[1752805079687,1.99052756,120010.0,120000.0,0.75969]
[1752805079887,1.66552067,120010.0,120000.0,0.75969]
[1752805080081,1.99052756,120010.0,120000.0,0.75969]
[1752805080386,1.66552067,120010.0,120000.0,0.78203975]
[1752805080587,1.99052756,120010.0,120000.0,0.78203975]
[1752805081781,2.48219045,120010.0,120000.0,0.506]
[1752805082080,2.17595602,120010.0,120000.0,0.506]
[1752805082388,1.39906002,120010.0,120000.0,0.506]
[1752805082789,2.00862002,120010.0,120000.0,0.006]
[1752805083384,2.00862002,120010.0,119980.0,0.18869444]
[1752805083385,0.1780094,119990.0,119980.0,0.18869444]
[1752805083689,1.95868913,119990.0,119980.0,0.18142975]
[1752805084186,1.17821973,119990.0,119980.0,0.45328305]
[1752805084488,0.3608,120000.0,119990.0,0.4082994]
[1752805084680,1.1367655,120000.0,119990.0,0.77834946]
[1752805084880,1.2611453,120000.0,119990.0,0.45334257]
[1752805085087,1.2611453,120000.0,119990.0,0.4309194]
[1752805085488,1.58615219,120000.0,119990.0,0.4309194]
[1752805085683,1.58815219,120000.0,119990.0,0.26438]
[1752805085878,1.59621219,120000.0,119990.0,0.28680317]
[1752805086083,1.59621219,120000.0,119990.0,0.78680317]
[1752805086288,1.59621219,120000.0,119990.0,0.79426469]
[1752805086289,1.60062219,120000.0,119990.0,0.79426469]
[1752805086683,1.59621219,120000.0,119990.0,0.79426469]
[1752805086879,1.60062219,120000.0,119990.0,0.78680113]
[1752805087079,1.65656925,120000.0,119990.0,0.78680113]
[1752805087380,1.65656925,120000.0,119990.0,0.95334053]
[1752805087681,1.65656925,120000.0,119990.0,0.72401113]
[1752805087988,1.65656925,120000.0,119990.0,0.78680113]
[1752805088784,1.65656925,120000.0,119990.0,0.79426469]
[1752805089183,1.65656925,120000.0,119990.0,0.78679999]
[1752805089790,1.65656925,120000.0,119990.0,0.73147469]
[1752805090689,1.65656925,120000.0,119990.0,0.89801409]
[1752805090890,1.65656925,120000.0,119990.0,0.79426469]
[1752805091283,1.04712925,120000.0,119990.0,0.96080409]
[1752805091590,1.2708853,120000.0,119990.0,0.96080409]
[1752805091890,1.2752953,120000.0,119990.0,0.79426469]
[1752805092090,1.65624925,120000.0,119990.0,0.79426469]
[1752805092679,1.65624925,120000.0,119990.0,0.66634469]
[1752805092885,1.65624925,120000.0,119990.0,0.15888671]
[1752805093186,1.65624925,120000.0,119990.0,0.13646]
[1752805094188,2.80872925,120000.0,119990.0,0.13646]
[1752805095884,2.19960925,120000.0,119990.0,0.15908]
[1752805096190,2.80848925,120000.0,119990.0,0.15908]
[1752805099593,2.19519925,120000.0,119990.0,0.4309194]
[1752805099794,1.8142453,120000.0,119990.0,0.45334611]
[1752805099994,2.4228853,120000.0,119990.0,0.28680671]
[1752805100194,2.80383925,120000.0,119990.0,0.28680671]
[1752805100390,2.19960925,120000.0,119990.0,0.3166914]
[1752805100595,2.80816925,120000.0,119990.0,0.8166914]
[1752805100795,2.80816925,120000.0,119990.0,0.79426469]
[1752805101791,2.4272153,120000.0,119990.0,0.79426469]
[1752805101996,2.80816925,120000.0,119990.0,0.79426469]
[1752805103699,2.80816925,120000.0,119990.0,0.71141693]
[1752805103997,3.1891232,120000.0,119990.0,0.52988469]
[1752805104194,3.1891232,120000.0,119990.0,0.48388886]
[1752805104399,3.1891232,120000.0,119990.0,0.02245266]
[1752805104898,3.3557952,120000.0,119990.0,6e-08]
[1752805105099,0.1665394,119990.0,119980.0,0.0167997]
[1752805105294,0.90829335,119990.0,119980.0,0.0167997]
[1752805105495,1.03378381,119990.0,119980.0,0.0167997]
[1752805106297,1.03578381,119990.0,119980.0,0.0167997]
[1752805107300,1.03678381,119990.0,119980.0,0.0167997]
[1752805108099,1.26402986,119990.0,119980.0,0.2063497]
[1752805108304,1.26402986,119990.0,119980.0,0.2764597]
[1752805108905,1.58916504,119990.0,119980.0,0.2764597]
[1752805109106,0.65582986,119990.0,119980.0,0.2764597]
[1752805109307,1.26390986,119990.0,119980.0,0.2764597]
[1752805109604,1.26390986,119990.0,119980.0,0.1868997]
[1752805109605,1.58904504,119990.0,119980.0,0.1868997]
[1752805109804,1.58904504,119990.0,119980.0,0.1744597]
[1752805110306,1.58904504,119990.0,119980.0,0.2187897]
[1752805111910,1.26390986,119990.0,119980.0,0.2187897]
[1752805112106,1.58904504,119990.0,119980.0,0.2187897]
[1752805112709,1.26390986,119990.0,119980.0,0.2187897]
[1752805112908,1.58904504,119990.0,119980.0,0.2764597]
[1752805114210,1.26366986,119990.0,119980.0,0.2764597]
[1752805114412,1.26358986,119990.0,119980.0,0.2764597]
[1752805114814,1.26358986,119990.0,119980.0,0.4430128]
[1752805115010,1.58872504,119990.0,119980.0,0.2764597]
[1752805115215,1.26358986,119990.0,119980.0,0.2764597]
[1752805115511,1.58872504,119990.0,119980.0,0.2764597]
[1752805116710,0.65582986,119990.0,119980.0,0.4430129]
[1752805116914,1.26346986,119990.0,119980.0,0.47289759]
[1752805117713,0.65582986,119990.0,119980.0,0.47289759]
[1752805117920,1.26338986,119990.0,119980.0,0.80634439]
[1752805118215,1.58852504,119990.0,119980.0,0.80634439]
[1752805118816,1.26338986,119990.0,119980.0,0.97289769]
[1752805119517,0.65582986,119990.0,119980.0,0.97289769]
[1752805119712,1.26338986,119990.0,119980.0,0.943013]
[1752805121109,1.58852504,119990.0,119980.0,0.7764597]
[1752805121619,1.26338986,119990.0,119980.0,0.943013]
[1752805121917,1.26318986,119990.0,119980.0,1.26814818]
[1752805122306,1.26318986,119990.0,119980.0,1.29803287]
[1752805123816,1.26318986,119990.0,119980.0,0.97289769]
[1752805124018,1.58832504,119990.0,119980.0,0.97289769]
[1752805124321,1.26318986,119990.0,119980.0,0.97289769]
[1752805124815,1.26318986,119990.0,119980.0,1.29803287]
[1752805125117,1.26318986,119990.0,119980.0,1.31294881]
[1752805125316,1.26318986,119990.0,119980.0,1.34289913]
[1752805125511,0.65582986,119990.0,119980.0,1.34289913]
[1752805125717,0.97088,119990.0,119980.0,1.72963681]
[1752805125907,1.1374194,119990.0,119980.0,1.72963681]
[1752805126107,1.1374194,119990.0,119980.0,1.47963681]
[1752805126719,0.97088,119990.0,119980.0,1.47963681]
[1752805127614,0.38775996,120010.0,120000.0,0.25966]
[1752805127819,0.99471996,120010.0,120000.0,0.75132068]
[1752805128018,1.12053624,120010.0,120000.0,0.78125877]
[1752805128316,0.75154874,120010.0,120000.0,0.94791477]
[1752805128512,0.4440442,120030.0,120010.0,0.102]
[1752805128714,0.6105387,120030.0,120020.0,0.75129298]
[1752805129019,1.34327498,120030.0,120020.0,0.4261578]
[1752805129218,1.26003078,120030.0,120020.0,0.4261578]
[1752805130019,1.26903078,120030.0,120020.0,0.4261578]
[1752805130214,1.27745868,120030.0,120020.0,0.4261578]
[1752805130616,1.1516424,120030.0,120020.0,0.4261578]
[1752805131016,1.1516424,120030.0,120020.0,0.45609589]
[1752805131721,1.1516424,120030.0,120020.0,0.95609589]
[1752805132912,1.1556424,120030.0,120020.0,0.9261578]
[1752805133117,1.1556424,120030.0,120020.0,0.95609589]
[1752805133318,0.9891479,120030.0,120020.0,1.25129298]
[1752805133511,0.9891479,120030.0,120020.0,1.28123107]
[1752805133821,0.9891479,120030.0,120020.0,0.95609589]
[1752805133822,1.1556318,120030.0,120020.0,0.95609589]
[1752805134019,1.1556318,120030.0,120020.0,1.28123107]
[1752805135621,1.1556318,120030.0,120020.0,0.95609589]
[1752805137523,1.60615414,120030.0,120020.0,0.95609589]
[1752805137723,1.60615414,120030.0,120020.0,0.9261578]
[1752805138125,1.60969414,120030.0,120020.0,0.65766]
[1752805138527,1.60969414,120030.0,120020.0,0.15766]
[1752805139319,1.60615414,120030.0,120020.0,0.4286678]
[1752805140221,1.60969414,120030.0,120020.0,0.63431]
[1752805140817,1.60969414,120030.0,120020.0,0.5]
[1752805141016,1.60969414,120030.0,120020.0,0.49646]
[1752805141426,1.60881414,120030.0,120020.0,0.49646]
[1752805141827,0.1664978,120020.0,120010.0,0.00966]
[1752805142027,0.85243298,120020.0,120010.0,0.14299]
[1752805142228,0.97794517,120020.0,120010.0,0.14299]
[1752805142630,0.97794517,120020.0,120010.0,0.16673]
[1752805143026,0.65580999,120020.0,120010.0,0.3751316]
[1752805143235,1.26176999,120020.0,120010.0,0.4377516]
[1752805143733,1.58690517,120020.0,120010.0,0.4377516]
[1752805144034,1.59490517,120020.0,120010.0,0.27224]
[1752805144231,1.59490517,120020.0,120010.0,0.4387517]
[1752805144831,1.59490517,120020.0,120010.0,0.4387516]
[1752805145638,1.59490517,120020.0,120010.0,0.27224]
[1752805146135,1.59490517,120020.0,120010.0,0.4387516]
[1752805146727,1.59490517,120020.0,120010.0,0.27224]
[1752805146929,0.98894517,120020.0,120010.0,0.27224]
[1752805147128,1.59470517,120020.0,120010.0,0.4387516]
[1752805147335,1.59470517,120020.0,120010.0,0.27224]
[1752805148329,1.59470517,120020.0,120010.0,0.14399]
[1752805149434,1.59470517,120020.0,120010.0,0.16773]
[1752805150935,1.59470517,120020.0,120010.0,0.20962]
[1752805151937,1.26956999,120020.0,120010.0,0.20962]
[1752805152127,1.59470517,120020.0,120010.0,0.20962]
[1752805152331,1.26956999,120020.0,120010.0,0.27224]
[1752805152537,1.59470517,120020.0,120010.0,0.27224]
[1752805154738,1.26956999,120020.0,120010.0,0.4387516]
[1752805155037,1.59434517,120020.0,120010.0,0.27224]
[1752805155537,0.49731219,120020.0,120010.0,0.79382487]
[1752805155728,1.10267219,120020.0,120010.0,0.79382487]
[1752805156134,1.10267219,120020.0,120010.0,1.29382487]
[1752805156535,0.74187219,120020.0,120010.0,1.65462487]
[1752805156740,0.90836999,120020.0,120010.0,1.30868741]
[1752805157640,1.26916999,120020.0,120010.0,0.98355223]
[1752805158134,1.59430517,120020.0,120010.0,0.81704063]
[1752805158438,1.59430517,120020.0,120010.0,0.79250178]
[1752805159341,1.59430517,120020.0,120010.0,0.95901338]
[1752805160040,1.59430517,120020.0,120010.0,0.79250178]
[1752805160237,1.59430517,120020.0,120010.0,0.95901338]
[1752805161040,1.59430517,120020.0,120010.0,0.95901348]
[1752805161239,1.59430517,120020.0,120010.0,0.79250178]
[1752805161741,1.26916999,120020.0,120010.0,0.95901348]
[1752805161942,1.59430517,120020.0,120010.0,0.95901348]
[1752805162343,1.26916999,120020.0,120010.0,0.95901348]
[1752805162639,1.26916999,120020.0,120010.0,1.29902751]
[1752805162640,0.74151219,120020.0,120010.0,1.29902751]
[1752805163547,0.74151219,120020.0,120010.0,0.97389233]
[1752805163842,0.90800999,120020.0,120010.0,1.29902751]
[1752805164244,0.74151219,120020.0,120010.0,0.97389233]
[1752805164445,0.74151219,120020.0,120010.0,1.29902751]
[1752805164641,0.74151219,120020.0,120010.0,1.82647551]
[1752805164849,0.616,120020.0,120010.0,1.82647551]
[1752805165138,0.616,120020.0,120010.0,1.953946]
[1752805165337,0.011,120020.0,120010.0,1.953946]
[1752805165641,0.011,120020.0,120010.0,1.74249737]
[1752805165842,0.011,120020.0,120010.0,1.38169737]
[1752805166247,0.011,120020.0,120010.0,1.74249737]
[1752805166744,0.011,120020.0,120010.0,1.90914537]
[1752805167046,0.011,120020.0,120010.0,1.54834537]
[1752805167644,0.011,120020.0,120010.0,1.38169737]
[1752805168645,0.011,120020.0,120010.0,1.0010917]
[1752805168846,0.011,120020.0,120010.0,1.38169737]
[1752805169248,0.011,120020.0,120010.0,1.44130472]
[1752805169645,0.011,120020.0,120010.0,1.06069905]
[1752805169947,0.1774978,120020.0,120010.0,1.38169737]
[1752805170142,0.1774978,120020.0,120010.0,1.04596085]
[1752805170447,0.5382978,120020.0,120010.0,1.04596085]
[1752805170647,0.1774978,120020.0,120010.0,1.04596085]
[1752805170849,0.5382978,120020.0,120010.0,1.04596085]
[1752805171148,0.011,120020.0,120010.0,1.04596085]
[1752805173947,0.1774978,120020.0,120010.0,1.04596085]
[1752805174451,0.5382978,120020.0,120010.0,1.04596085]
[1752805175145,0.3718,120020.0,120010.0,1.04596085]
[1752805175548,0.5382978,120020.0,120010.0,1.04596085]
[1752805176048,0.3718,120020.0,120010.0,1.04596085]
[1752805176249,0.011,120020.0,120010.0,1.04596085]
[1752805176748,0.011,120020.0,120010.0,1.40676085]
[1752805177144,0.011,120020.0,120010.0,1.78736652]
[1752805179051,0.011,120020.0,120010.0,1.40676085]
[1752805179849,0.011,120020.0,120010.0,1.42149905]
[1752805180449,0.011,120020.0,120010.0,1.06069905]
[1752805180753,0.011,120020.0,120010.0,1.80210472]
[1752805182951,0.3608,120030.0,120020.0,0.2685379]
[1752805183150,0.3608,120030.0,120020.0,0.80580357]
[1752805183345,0.3608,120030.0,120020.0,1.40976357]
[1752805184656,0.3608,120030.0,120020.0,1.5291579]
[1752805184858,0.527284,120030.0,120020.0,1.5291579]
[1752805185057,0.53844589,120030.0,120020.0,1.5301579]
[1752805185356,0.530284,120030.0,120020.0,1.5301579]
[1752805185550,0.530284,120030.0,120020.0,1.5398279]
[1752805185757,0.530284,120030.0,120020.0,0.9358679]
[1752805186257,0.530284,120030.0,120020.0,0.99547525]
[1752805186457,0.530284,120030.0,120020.0,1.37608092]
[1752805187056,0.530284,120030.0,120020.0,1.39226535]
[1752805187658,0.003,120030.0,120020.0,1.39226535]
[1752805188053,0.003,120030.0,120020.0,1.75306535]
[1752805188657,0.004,120030.0,120020.0,1.75406535]
[1752805193355,0.3608,120050.0,120020.0,1.75419945]
[1752805193660,1.2139361,120070.0,120060.0,0.4269424]
[1752805193960,1.38016926,120070.0,120060.0,0.7517325]
[1752805194352,1.38016926,120070.0,120060.0,0.78167862]
[1752805194353,0.90638126,120070.0,120060.0,0.78167862]
[1752805194558,0.89453206,120070.0,120060.0,1.14247862]
[1752805194758,0.89453206,120070.0,120060.0,1.64247862]
[1752805196159,0.12462356,120070.0,120060.0,1.64247862]
[1752805196461,2.0051558,120080.0,120070.0,0.2676785]
[1752805196663,2.0051558,120080.0,120070.0,0.7517186]
[1752805196966,2.1955813,120080.0,120070.0,0.7517186]
[1752805197165,2.1955813,120080.0,120070.0,1.1125186]
[1752805197657,2.1955813,120080.0,120070.0,1.2527186]
[1752805197865,2.13281084,120080.0,120070.0,1.2527186]
[1752805198068,2.13281084,120080.0,120070.0,0.9279285]
[1752805198459,2.13281084,120080.0,120070.0,1.2527186]
[1752805198859,2.13781084,120080.0,120070.0,1.2537186]
[1752805200668,2.13781084,120080.0,120070.0,0.9289285]
[1752805200856,1.53445084,120080.0,120070.0,0.9289285]
[1752805201063,2.14853084,120080.0,120070.0,0.9289285]
[1752805201467,2.14853084,120080.0,120070.0,0.7625]
[1752805201468,2.23104094,120080.0,120070.0,0.7625]
[1752805201666,2.83408094,120080.0,120070.0,0.9289285]
[1752805201868,1.90625084,120080.0,120070.0,0.8050885]
[1752805202064,2.83408094,120080.0,120070.0,0.8276785]
[1752805202269,2.50929084,120080.0,120070.0,0.8276785]
[1752805202569,2.2974517,120080.0,120070.0,0.8276785]
[1752805202767,2.9004517,120080.0,120070.0,0.8276785]
[1752805203169,2.9004517,120080.0,120070.0,0.8586685]
[1752805203170,2.5396517,120080.0,120070.0,0.8586685]
[1752805203768,2.2148616,120080.0,120070.0,0.9289285]
[1752805203963,2.2038616,120080.0,120070.0,0.9289285]
[1752805204165,2.5756616,120080.0,120070.0,0.95887462]
[1752805204371,2.9004517,120080.0,120070.0,0.9289285]
[1752805204566,2.5396517,120080.0,120070.0,0.9289285]
[1752805204773,2.9003317,120080.0,120070.0,0.9289285]
[1752805204969,2.5395317,120080.0,120070.0,0.9289285]
[1752805205169,2.9003317,120080.0,120070.0,0.95887462]
[1752805205370,2.5395317,120080.0,120070.0,0.95887462]
[1752805205571,2.2147416,120080.0,120070.0,0.95887462]
[1752805206071,2.2147416,120080.0,120070.0,0.98129315]
[1752805206374,2.1621355,120080.0,120070.0,0.98129315]
[1752805206575,2.1621355,120080.0,120070.0,0.95134703]
[1752805206874,1.5592555,120080.0,120070.0,0.95134703]
[1752805207071,2.1620555,120080.0,120070.0,0.9385985]
[1752805207267,0.29908084,120080.0,120070.0,1.2633886]
[1752805207470,0.90184084,120080.0,120070.0,1.29326978]
[1752805208176,0.91368084,120080.0,120070.0,0.96847968]
[1752805208779,0.32192084,120080.0,120070.0,0.96847968]
[1752805208979,1.24943094,120080.0,120070.0,0.99088736]
[1752805209181,0.92464084,120080.0,120070.0,0.96100618]
[1752805209483,1.61023094,120080.0,120070.0,0.96100618]
[1752805209782,1.28544084,120080.0,120070.0,0.99088736]
[1752805210081,1.61023094,120080.0,120070.0,0.99088736]
[1752805210580,1.61023094,120080.0,120070.0,0.96847968]
[1752805211077,1.61023094,120080.0,120070.0,0.99088707]
[1752805211283,1.61023094,120080.0,120070.0,0.96847968]
[1752805211680,1.61023094,120080.0,120070.0,0.99088701]
[1752805212478,1.61023094,120080.0,120070.0,0.96847968]
[1752805212783,1.24943094,120080.0,120070.0,0.96847968]
[1752805213083,0.92464084,120080.0,120070.0,0.96847968]
[1752805213384,0.92444084,120080.0,120070.0,0.96847968]
[1752805215382,0.64671094,120080.0,120070.0,0.70080118]
[1752805215588,0.64671094,120080.0,120070.0,0.51167]
[1752805215589,2.36998363,120080.0,120070.0,0.51167]
[1752805215782,1.76754363,120080.0,120070.0,0.51167]
[1752805215980,1.79515353,120080.0,120070.0,0.64833]
[1752805216584,1.19275353,120080.0,120070.0,0.64833]
[1752805216784,1.79515353,120080.0,120070.0,0.14833]
[1752805216985,2.11994363,120080.0,120070.0,0.01167]
[1752805217281,0.1664285,120070.0,120060.0,0.15907243]
[1752805217585,1.57918194,120070.0,120060.0,0.15907243]
[1752805217881,1.57918194,120070.0,120060.0,0.13666]
[1752805218083,0.1664424,120060.0,120050.0,0.21154361]
[1752805218385,0.97722446,120060.0,120050.0,0.21154361]
[1752805219087,1.57954446,120060.0,120050.0,0.21154361]
[1752805219281,1.57954446,120060.0,120050.0,0.71154361]
[1752805219482,1.59846903,120060.0,120050.0,0.65907243]
[1752805219883,1.59846903,120060.0,120050.0,0.63666]
[1752805220186,1.59946903,120060.0,120050.0,0.64066]
[1752805220377,1.60046903,120060.0,120050.0,0.64366]
[1752805220979,1.60046903,120060.0,120050.0,0.14366]
[1752805221186,1.59946903,120060.0,120050.0,0.14066]
[1752805221387,1.59946903,120060.0,120050.0,0.14166]
[1752805221388,1.60346903,120060.0,120050.0,0.14166]
[1752805221777,1.27867893,120060.0,120050.0,0.14166]
[1752805221979,1.60346903,120060.0,120050.0,0.14166]
[1752805222390,1.60846903,120060.0,120050.0,0.13866]
[1752805222885,1.60846903,120060.0,120050.0,0.16171]
[1752805224091,1.60846903,120060.0,120050.0,0.13866]
[1752805224388,1.60830903,120060.0,120050.0,0.13866]
[1752805224888,1.00614903,120060.0,120050.0,0.13866]
[1752805225084,1.60830903,120060.0,120050.0,0.13866]
[1752805225383,1.6166033,120060.0,120050.0,0.13866]
[1752805226389,1.6166033,120060.0,120050.0,0.16171]
[1752805228588,1.2918132,120060.0,120050.0,0.3281662]
[1752805228890,1.6165633,120060.0,120050.0,0.3613062]
[1752805229493,1.6165633,120060.0,120050.0,0.19485]
[1752805229795,1.6165633,120060.0,120050.0,0.21726243]
[1752805231590,1.6165633,120060.0,120050.0,0.19485]
[1752805231796,1.6165633,120060.0,120050.0,0.21726243]
[1752805232198,1.6165633,120060.0,120050.0,0.19485]
[1752805232491,0.67072863,120060.0,120050.0,0.4322162]
[1752805232796,1.27272863,120060.0,120050.0,0.45462863]
[1752805232989,1.27272863,120060.0,120050.0,0.95462863]
[1752805233194,0.91192863,120060.0,120050.0,0.95462863]
[1752805233900,0.74548623,120060.0,120050.0,0.95462863]
[1752805234095,0.91192863,120060.0,120050.0,0.95462863]
[1752805234400,0.91192863,120060.0,120050.0,0.9322162]
[1752805234697,0.74536623,120060.0,120050.0,1.2930162]
[1752805234898,0.91180863,120060.0,120050.0,0.96209738]
[1752805235093,0.91180863,120060.0,120050.0,1.2570063]
[1752805235691,0.91180863,120060.0,120050.0,1.28688748]
[1752805236792,0.91180863,120060.0,120050.0,1.64768748]
[1752805236991,0.91180863,120060.0,120050.0,1.28688748]
[1752805238400,0.91180863,120060.0,120050.0,0.96209738]
[1752805238797,1.23659873,120060.0,120050.0,0.73693118]
[1752805238996,1.59739873,120060.0,120050.0,0.63866]
[1752805240204,1.59739873,120060.0,120050.0,0.13866]
[1752805244308,1.27260863,120060.0,120050.0,0.13866]
[1752805244509,1.59739873,120060.0,120050.0,0.16171]
[1752805250714,1.59739873,120060.0,120050.0,0.13866]
[1752805250909,1.59739873,120060.0,120050.0,0.002]
[1752805252116,1.59739873,120060.0,120050.0,0.08914]
[1752805253116,1.59739873,120060.0,120050.0,0.1358]
[1752805253809,0.1664562,120050.0,120040.0,0.18078283]
[1752805254116,0.97684726,120050.0,120040.0,0.01710165]
[1752805255117,0.97984726,120050.0,120040.0,0.01810165]
[1752805255517,0.98584726,120050.0,120040.0,0.01910165]
[1752805255720,0.98584726,120050.0,120040.0,0.002]
[1752805258322,0.98584726,120050.0,120040.0,0.1358]
[1752805258523,0.98584726,120050.0,120040.0,0.08914]
[1752805261418,0.98584726,120050.0,120040.0,0.002]
[1752805261620,0.2081079,120030.0,120020.0,0.1338]
[1752805261825,1.855498,120030.0,120020.0,0.26217]
[1752805262025,1.65540836,120030.0,120020.0,0.4286678]
[1752805262825,1.65640836,120030.0,120020.0,0.26517]
[1752805263128,1.98219846,120030.0,120020.0,0.26917]
[1752805263918,1.38119846,120030.0,120020.0,0.4356679]
[1752805264121,0.89410446,120030.0,120020.0,0.77748177]
[1752805264729,0.89410446,120030.0,120020.0,1.27748177]
[1752805266329,0.89410446,120030.0,120020.0,1.30736295]
[1752805266928,0.89410446,120030.0,120020.0,1.27748177]
[1752805267528,0.89402446,120030.0,120020.0,1.30736295]
[1752805267927,0.89402446,120030.0,120020.0,1.66816295]
[1752805268429,0.89402446,120030.0,120020.0,1.71298472]
[1752805269030,0.29318446,120030.0,120020.0,1.71298472]
[1752805269427,0.29318446,120030.0,120020.0,1.68310354]
[1752805269831,0.29318446,120030.0,120020.0,1.69804413]
[1752805270831,0.12670046,120030.0,120020.0,1.69804413]
[1752805272932,0.29318446,120030.0,120020.0,1.69804413]
[1752805273738,0.12670046,120030.0,120020.0,1.69804413]
[1752805276340,0.12670046,120030.0,120020.0,1.37325403]
[1752805276538,0.12670046,120030.0,120020.0,1.69804413]
[1752805277940,0.12670046,120030.0,120020.0,1.63828177]
[1752805278842,0.12670046,120030.0,120020.0,2.23860177]
[1752805279043,0.29318446,120030.0,120020.0,1.31349167]
[1752805279234,0.29318446,120030.0,120020.0,1.63828177]
[1752805279943,0.12670046,120030.0,120020.0,1.63828177]